Cogmind - Beta 15 @@@ ROGUE MODE // 2025.09.13 @ 18:46:55 Player: cottonman132 Result: Destroyed by XD-KBA(j) with Overtuned Pulse Rifle Performance ------------- Evolutions (0) 0 Regions Visited (3) 600 Robots Destroyed (16) 80 Value Destroyed (346) 346 Prototype IDs (0) 0 Alien Tech Used (0) 0 Bonus (800) 800 TOTAL SCORE: 1826 Bonus ------- Registered with UFD 300 Met Optimus in HQ 500 Cogmind --------- Core Integrity 0/250 Matter 300/300 Energy 140/140 System Corruption 0% Temperature Cool (12) Movement Walking (190) Ox1 Location -8/Scraptown Parts ------- > --- POWER (1) -------- Light Deuterium Engine > --- PROPULSION (2) --- Carbon-fiber Leg Armored Leg > --- UTILITY (2) ------ High-capacity Storage Unit > --- WEAPON (2) ------- (None) > --- INVENTORY (20) --- Nuclear Core Sensor Array Improved Signal Interpreter Terrain Scanner Terrain Scan Processor Melee Analysis Suite Force Booster Layered Light Armor Plating Reflective Plating Medium Insulated Plating A0-MCA's Component Scanner Flail Flail Heavy Flail Chainsword Peak State ------------ > --- POWER ------------ Light Deuterium Engine > --- PROPULSION ------- Carbon-fiber Leg Armored Leg > --- UTILITY ---------- High-capacity Storage Unit Subdweller Optics > --- WEAPON ----------- Flail Flail > --- INVENTORY -------- Nuclear Core Sensor Array Improved Signal Interpreter Terrain Scanner Terrain Scan Processor Melee Analysis Suite Force Booster Layered Light Armor Plating Reflective Plating Medium Insulated Plating A0-MCA's Component Scanner Heavy Flail Chainsword [Rating: 22] Favorites ----------- Power Light Deuterium Engine Engine Light Deuterium Engine Power Core Fission Core Propulsion Compact Wheel Leg Carbon-fiber Leg Wheel Compact Wheel Utility Subdweller Optics Device Subdweller Optics Storage Medium Storage Unit Weapon Flail Energy Gun EM Pulse Gun Impact Weapon Flail Build | -11 -10 -10 -8 ------- Run | Yrd Mat Sub Scr Slots Evolved . | . . . . Power . | . . . . Propulsion . | . . . . Utility . | . . . . Weapon . | . . . . Parts Attached 23 | 4 9 3 7 Power 5 | 1 1 . 3 Engine 3 | 1 1 . 1 Core 2 | . . . 2 Reactor . | . . . . Propulsion 9 | 2 2 2 3 Treads . | . . . . Leg 7 | 2 2 . 3 Wheel 2 | . . 2 . Hover . | . . . . Flight . | . . . . Utility 5 | 1 2 1 1 Device 2 | . 1 1 . Storage 3 | 1 1 . 1 Processor . | . . . . Hackware . | . . . . Protection . | . . . . Artifact . | . . . . Weapon 4 | . 4 . . Energy Gun 2 | . 2 . . Energy Cannon . | . . . . Ballistic Gun . | . . . . Ballistic Cannon . | . . . . Launcher . | . . . . Special Weapon . | . . . . Impact Weapon 2 | . 2 . . Slashing Weapon . | . . . . Piercing Weapon . | . . . . Special Melee Weapon . | . . . . Unidentified Prototypes . | . . . . Parts Lost 4 | . 1 3 . Power 2 | . 1 1 . Propulsion 1 | . . 1 . Utility 1 | . . 1 . Weapon . | . . . . Highest Loss Streak 2 | . 1 2 . To Critical Strikes . | . . . . Average Backups 9 | . 5 9 11 Power . | . . . . Propulsion . | . 1 1 . Utility 6 | . 2 4 8 Weapon 2 | . 2 4 2 Tool/Special . | . . . . Unused Backups 18 | . . . 18 Power . | . . . . Propulsion . | . . . . Utility 12 | . . . 12 Weapon 6 | . . . 6 Tool/Special . | . . . . Average Slot Usage (%) 87 | . 87 77 89 Engine 8 | . 13 1 8 Leg 18 | . 28 16 16 Wheel 9 | . . 9 11 Device 9 | . 8 6 9 Storage 14 | . 14 14 14 Energy Gun 1 | . 11 . . Impact Weapon 24 | . 10 28 26 Peak Build Rating 22 | 4 10 10 22 Average Rating 14 | 2 7 8 16 On Entrance 6 | . 4 10 10 Naked Turns . | . . . . Heaviest Build 56 | 8 18 18 56 Greatest Support 34 | 20 20 32 34 Greatest Overweight (x) 2 | . . 1 2 Average Overweight (x) . | . . . . Largest Inventory Capacity 20 | 8 10 10 20 Average Capacity 14 | 6 8 10 15 Most Carried 15 | 3 10 10 15 Average Carried 9 | . 5 9 11 Final Capacity 20 | 8 10 10 20 Final Carried 15 | 1 10 8 15 Class Distribution -------------------- 100% | Mutant Dominant Class ---------------- Mutant | -10/Materials Mutant | -10/Subcaves Mutant | -8/Scraptown Resources | -11 -10 -10 -8 ----------- Run | Yrd Mat Sub Scr Matter Collected 410 | 240 60 40 70 Remotely . | . . . . Salvage Created 415 | . 284 131 . Parts 30 | . 26 4 . Haulers Intercepted 1 | . 1 . . Recyclers Shooed . | . . . . Parts Field Recycled . | . . . . Retrieved Matter . | . . . . Parts Self-Destructed . | . . . . Prevented . | . . . . Kills | -11 -10 -10 -8 ------- Run | Yrd Mat Sub Scr Combat Hostiles Destroyed 11 | . 7 4 . Melee 5 | . 3 2 . Guns 3 | . 3 . . Classes Destroyed 7 | . 6 1 . Builder 1 | . 1 . . Hauler 1 | . 1 . . Operator 1 | . 1 . . Watcher 2 | . 2 . . Swarmer 5 | . 5 . . Grunt 2 | . 2 . . Subdweller 4 | . . 4 . Best Kill Streak 3 | . 3 1 . Combat Bots Only 3 | . 3 1 . Max Kills in Single Turn 2 | . 2 1 . Gunslinging 1 | . 1 . . Exploded . | . . . . Melee 1 | . 1 1 . Uniques/NPCs Destroyed . | . . . . Combat | -11 -10 -10 -8 -------- Run | Yrd Mat Sub Scr Hostile Shots Fired 89 | . 65 23 1 Missed 22 | . 18 4 . Hits 67 | . 47 19 1 Projectile 67 | . 47 19 1 AOE 1 | . . . 1 Damage Taken 920 | . 427 408 85 Core 262 | . 148 57 57 Absorbed by Shields . | . . . . Core Remaining (%) 100 | 100 . . . Volleys Fired 6 | . 6 . . Largest 2 | . 2 . . Hottest 80 | . 80 . . Shots Fired 12 | . 12 . . Gun 12 | . 12 . . Cannon . | . . . . Launcher . | . . . . Special . | . . . . Kinetic . | . . . . Thermal . | . . . . Explosive . | . . . . Electromagnetic 12 | . 12 . . Robot Hit Streak 4 | . 4 . . Robot Miss Streak 1 | . 1 . . Penetration Max . | . . . . Secondary Targets 1 | . 1 . . Max Gunslinging Chain 1 | . 1 . . Shots Hit Robots 29 | . 14 15 . Core Hits 20 | . 18 2 . Critical Kills 2 | . 1 1 . Critical Parts Destroyed 1 | . 1 . . Critical Strikes 4 | . 2 2 . Smash 4 | . 2 2 . Melee Attacks 41 | . 14 27 . Impact 41 | . 14 27 . Slashing . | . . . . Piercing . | . . . . Sneak Attacks . | . . . . Combat Hostiles . | . . . . Follow-up Attacks 5 | . 1 4 . Damage Inflicted 979 | . 400 579 . Guns 114 | . 114 . . Cannons . | . . . . Explosions . | . . . . Melee 803 | . 224 579 . Ramming 62 | . 62 . . Kinetic . | . . . . Thermal . | . . . . Explosive . | . . . . Electromagnetic 114 | . 114 . . Impact 803 | . 224 579 . Slashing . | . . . . Piercing . | . . . . Highest Corruption . | . . . . Average Corruption . | . . . . Corruption Purged . | . . . . Corruption Blocked . | . . . . Overload Shots . | . . . . Overflow Damage 77 | . 63 14 . Projectiles . | . . . . Explosions . | . . . . Melee 77 | . 63 14 . Knockbacks 1 | . . 1 . Impact 1 | . . 1 . Kinetic . | . . . . Secondary . | . . . . Self-Inflicted Damage . | . . . . Shots . | . . . . Rammed . | . . . . Targets Rammed 31 | . 31 . . Kicked 31 | . 31 . . Crushed . | . . . . Highest Temperature 54 | . 54 . . Average Temperature 24 | . 24 . . Received Heat Transfer 129 | . 63 42 24 Siege Activations . | . . . . Martial Activations . | . . . . Shielding Activations . | . . . . Robots Disrupted . | . . . . Combat Hostiles . | . . . . Robots Corrupted 4 | . 2 2 . Combat Hostiles 3 | . 1 2 . Parts Fried 2 | . 1 1 . Impact Corruptions 7 | . 3 4 . Robots Melted . | . . . . Combat Hostiles . | . . . . Parts Melted . | . . . . Heat Transferred . | . . . . Parts Sabotaged . | . . . . Parts Stolen . | . . . . Parts Stripped . | . . . . Power Chain Reactions . | . . . . Alert | -11 -10 -10 -8 ------- Run | Yrd Mat Sub Scr Maximum Alert Level . | . . . . Low Security (%) 100 | 100 100 . . Level 1 . | . . . . Level 2 . | . . . . Level 3 . | . . . . Level 4 . | . . . . Level 5 . | . . . . High Security . | . . . . Max Security . | . . . . Peak Influence 60 | . 60 . . Initial . | . . . . Average 13 | . 15 . . Influence Increases 208 | . 208 . . Destroy 0b10 Robot/C 140 | . 140 . . Destroy 0b10 Robot/NC 25 | . 25 . . Destroy Leader 36 | . 36 . . Successful Hack 5 | . 5 . . Destroy Structure 2 | . 2 . . Influence Decreases 208 | . 198 10 . Entered New Map 6 | . . 6 . Time Decay 192 | . 188 4 . Lost Part 10 | . 10 . . Squads Dispatched 1 | . 1 . . Investigation 1 | . 1 . . Extermination . | . . . . Reinforcement . | . . . . Assault . | . . . . Garrison . | . . . . Intercept . | . . . . Searches Triggered . | . . . . Construction Impeded . | . . . . Haulers Reinforced . | . . . . Active Scanning Responses . | . . . . Cargo Convoy Interrupts . | . . . . Stealth | -11 -10 -10 -8 --------- Run | Yrd Mat Sub Scr Distress Signals . | . . . . Communications Jammed . | . . . . Distress Signals . | . . . . Times Spotted 21 | . 10 5 6 Peak Tracking Total 4 | . 3 2 4 Tactical Retreats 1 | . . 1 . Traps | -11 -10 -10 -8 ------- Run | Yrd Mat Sub Scr Traps Triggered . | . . . . Indirectly . | . . . . Trap Hack Attempts . | . . . . Triggered . | . . . . Disarmed . | . . . . Reprogrammed . | . . . . Reused . | . . . . Traps Extracted . | . . . . Installed . | . . . . Triggered . | . . . . Machines | -11 -10 -10 -8 ---------- Run | Yrd Mat Sub Scr Machines Disabled . | . . . . Max in Single Turn . | . . . . Machines Repaired . | . . . . Machines Dismantled . | . . . . Machines Sabotaged . | . . . . Overloaded Fab Kills . | . . . . Hacking | -11 -10 -10 -8 --------- Run | Yrd Mat Sub Scr Machines Accessed 10 | . 4 . 6 Terminals 4 | . 4 . . Fabricators . | . . . . Repair Stations . | . . . . Recycling Units . | . . . . Scanalyzers . | . . . . Garrison Access . | . . . . Total Hacks 58 | . 9 . 49 Successful 53 | . 4 . 49 Failed 5 | . 5 . . Catastrophic 2 | . 2 . . Database Lockouts . | . . . . Manual 2 | . 2 . . Terminals 9 | . 9 . . Fabricators . | . . . . Repair Stations . | . . . . Recycling Units . | . . . . Scanalyzers . | . . . . Garrison Access . | . . . . Terminal Hacks 51 | . 2 . 49 Record 50 | . 1 . 49 Zone Layout 1 | . 1 . . Fabricator Hacks . | . . . . Repair Station Hacks . | . . . . Recycling Unit Hacks . | . . . . Scanalyzer . | . . . . Garrison Access Hacks . | . . . . Unauthorized Hacks 2 | . 2 . . Terminals 2 | . 2 . . Botnet 2 | . 2 . . Fabricators . | . . . . Repair Stations . | . . . . Recycling Units . | . . . . Scanalyzers . | . . . . Garrison Access . | . . . . Data Cores Recovered 1 | . 1 . . Used . | . . . . Hacking Detections 2 | . 2 . . Full Trace Events 1 | . 1 . . Feedback Events . | . . . . Feedback Blocked . | . . . . Robot Schematics Acquired . | . . . . Robots Built . | . . . . Authchips . | . . . . Time . | . . . . Total Robot Build Rating . | . . . . Part Schematics Acquired . | . . . . Parts Built . | . . . . Authchips . | . . . . Time . | . . . . Total Part Build Rating . | . . . . Parts Repaired . | . . . . Time . | . . . . Parts Recycled . | . . . . Recycled Matter . | . . . . Retrieved Matter . | . . . . Retrieved Components . | . . . . Parts Scanalyzed . | . . . . Part Schematics Acquired . | . . . . Parts Damaged . | . . . . Bothacking | -11 -10 -10 -8 ------------ Run | Yrd Mat Sub Scr Used RIF Installer . | . . . . Robots Hacked . | . . . . Non-combat . | . . . . Combat . | . . . . Robot Hacks Applied . | . . . . Relay Couplers Released . | . . . . Fabnet Peak Effective % . | . . . . Robots Rewired . | . . . . Allies Hacked . | . . . . Hacks Repelled . | . . . . Allies | -11 -10 -10 -8 -------- Run | Yrd Mat Sub Scr Total Allies . | . . . . Largest Group . | . . . . Highest-Rated Group . | . . . . Highest-Rated Ally . | . . . . Total Orders . | . . . . Ally Attacks . | . . . . Total Damage . | . . . . Kills . | . . . . Allies Corrupted . | . . . . Allies Melted . | . . . . Intel | -11 -10 -10 -8 ------- Run | Yrd Mat Sub Scr Active Infowar (turns) 2359 | . 353 128 1878 Optics 1968 | . . 90 1878 Sensors 391 | . 353 38 . Robot Analysis Total . | . . . . Derelict Logs Recovered 2 | . . 1 1 Drone Launches . | . . . . Drone Recoveries . | . . . . Exploration | -11 -10 -10 -8 ------------- Run | Yrd Mat Sub Scr Turns Passed 3602 | 66 565 285 2686 Spaces Moved 2528 | 62 352 197 1917 Core 24 | 24 . . . Treads . | . . . . Legs 1304 | 38 352 99 815 Wheels 1200 | . . 98 1102 Hover . | . . . . Flight . | . . . . Fastest Speed 50 | 50 120 100 100 Average Speed 132 | 92 120 112 138 Slowest Speed 240 | 120 120 190 240 Overloaded Moves . | . . . . Propulsion Burnouts . | . . . . Robots Hopped . | . . . . Potential Cave-ins . | . . . . Cave-ins Triggered . | . . . . Exploration Rate (%) 42 | 4 54 16 96 Regions Visited 3 Branch Regions 2 Pre-discovered Areas . | . . . . Known Exits Taken . | . . . . Unknown Exits Taken 3 | 1 1 1 . Scrap Searched 13 | . . 6 7 Spaces Dug 2 | . 2 . . Terrain Destroyed 2 | . 2 . . Melee 2 | . 2 . . Projectile . | . . . . AOE . | . . . . Terrain Rammed . | . . . . Walls Destroyed . | . . . . Machines Disabled . | . . . . Actions | -11 -10 -10 -8 --------- Run | Yrd Mat Sub Scr Total 2712 | 70 461 225 1956 Wait 31 | . 29 2 . Move 2525 | 61 351 196 1917 Hop . | . . . . Pick Up 41 | 5 17 1 18 Fast Attach 1 | . . . 1 Attach 13 | 4 6 3 . Detach . | . . . . Swap 9 | . 3 . 6 Drop 21 | . 6 1 14 Fire 6 | . 6 . . Melee 34 | . 12 22 . Ram . | . . . . Kick 31 | . 31 . . Crush . | . . . . Escape Stasis . | . . . . Rewire . | . . . . Trap . | . . . . Miscellaneous . | . . . . Route ------- -11/Scrapyard -10/Materials (discovered 2 exits: [*Mat] / [*Sub]) -10/Subcaves -8/Scraptown (discovered 2 exits: [*Fac x2]) History --------- Turn | Location | Event 2 | -11/Scrapyard | Met Revision 17 4 | -11/Scrapyard | Discovered new exit (range 14) 67 | -11/Scrapyard | Entered Materials 300 | -10/Materials | Build established: Mutant 508 | -10/Materials | Discovered new exit (range 16) 536 | -10/Materials | Core integrity fell below 50% 627 | -10/Materials | Discovered new exit (range 5) 632 | -10/Materials | Entered Subcaves 633 | -10/Subcaves | Approached by a straggling Scientist 787 | -10/Subcaves | Learned Materials trap positions 819 | -10/Subcaves | Core integrity fell below 20% 915 | -10/Subcaves | Scientist uncovered a shortcut to Scraptown 917 | -10/Subcaves | Entered Scraptown 993 | -8/Scraptown | Received an X-ray algorithm 1305 | -8/Scraptown | Scanned Subdweller tech in exchange for log data 1308 | -8/Scraptown | Learned Research terminal intel 1319 | -8/Scraptown | Discovered new exit (range 13) 1412 | -8/Scraptown | Visited Cyclists 1450 | -8/Scraptown | Visited Science Testing Area 1464 | -8/Scraptown | Visited SPCMW 1507 | -8/Scraptown | Heard Great Nut preacher, LISTEN AND RECITE! 1518 | -8/Scraptown | Visited Red Mages 1581 | -8/Scraptown | Visited Assassins FH 1655 | -8/Scraptown | Visited Spacefarers 1718 | -8/Scraptown | Visited Comm Corps 1996 | -8/Scraptown | Visited UFD Registry 1996 | -8/Scraptown | Registered with UFD as "Protocycle" 2016 | -8/Scraptown | Visited DA-N13 Charitable Foundation 2026 | -8/Scraptown | Found DCF Scrap (28 items) 2119 | -8/Scraptown | Visited Junk Repository 2617 | -8/Scraptown | Visited A0-MCA Data Center 2629 | -8/Scraptown | Given a C- rating by A0-MCA 2632 | -8/Scraptown | Found A0-MCA's Component Scanner 2690 | -8/Scraptown | Visited Supply Room 2736 | -8/Scraptown | Visited Observation Area 2843 | -8/Scraptown | Visited Modified Component R&D 3056 | -8/Scraptown | Discovered new exit (range 5) 3160 | -8/Scraptown | Visited Chapter 10 3223 | -8/Scraptown | Visited Derelict Rescue Squad 3464 | -8/Scraptown | Met Optimus 3464 | -8/Scraptown | Accepted into 0bPrime 3588 | -8/Scraptown | Civil war broke out across Scraptown 3603 | -8/Scraptown | Destroyed by XD-KBA(j) with Overtuned Pulse Rifle Last Messages --------------- we must shoot to kill. Collateral damage is to be expected!" 03595_ MB-S5J(p) suffers critical hit (Destroy). 03597_ SE-9RT(j) suffers critical hit (Destroy). 03597_ SE-9RT(j) destroyed. 03597_ WD-K7H(E) destroyed. 03598_ DJ-5UR(j) heat short circuits Mak. Microdissipator Network. 03598_ NL-0HL(j) destroyed. 03599_ DJ-5UR(j) heat short circuits Ovr. Pulse Rifle. 03600_ 3P-RVE(j) destroyed. 03600_ Chain reaction triggered in Imp. Deuterium Engine. 03602_ Slug penetrates MB-S5J(p). 03602_ Slug penetrates U4-0FH(j). 03602_ U4-0FH(j) destroyed. 03602_ MB-S5J(p) suffers critical hit (Destroy). 03602_ MB-S5J(p) destroyed. Map ----- +----------------------------------------------------+ | | | | | | | | | | | | | | | | | ?????????????????????????????????????????????????? | | ?????????????????????????????????????????????????? | | ?????????????????????????????????????????????????? | | ?????????????????????????????????????????????????? | | ?????????????????????????????????????????????????? | | ?????????????????????????????????????????????????? | | ?????????????????????????????????????????????????? | | ?????????????????????????????????????????????????? | | ?????????????????????????????????????????????????? | | ?????????????????????????????????????????????????? | | ?????????????????????????????????????????????????? | | ???????????????????????????#####?????????????????? | | ???????????????????????????#"""#?????????????????? | | ###############???####?????#"j"#?????????????????? | | #"""##""|##"""#??## #######j